bitfinex-derivatives/quotes_ETHF0:USTF0_20251009
["timestamp","ask_amount","ask_price","bid_price","bid_amount"]
[1760014565709,3.86196044,4405.7,4405.0,0.3577]
[1760014566005,3.86196044,4405.7,4404.0,1.15968]
[1760014566006,1.19669,4404.7,4404.6,0.2245]
[1760014566198,0.75761,4404.4,4404.3,40.8]
[1760014566403,0.84764,4404.2,4404.1,0.85494]
[1760014566705,0.00285296,4404.7,4404.1,0.22403006]
[1760014567011,0.85044296,4404.7,4404.6,0.4464]
[1760014567204,0.67095296,4404.7,4404.6,0.4464]
[1760014567506,0.67095296,4404.7,4404.6,0.8549]
[1760014567507,0.00285296,4404.7,4404.6,0.8549]
[1760014567712,0.00285296,4404.7,4404.6,4.0627]
[1760014567914,0.00285296,4404.7,4404.6,4.381]
[1760014569415,0.3448,4405.5,4405.4,1.17312]
[1760014569609,0.89736,4405.5,4405.4,1.17312]
[1760014569906,0.3448,4405.5,4405.4,0.7647]
[1760014570113,1.32501,4405.5,4405.4,0.5428]
[1760014570304,1.32763655,4405.5,4405.4,0.5428]
[1760014570510,0.57012655,4405.5,4405.4,0.7647]
[1760014570909,0.57012655,4405.5,4405.4,1.17312]
[1760014570910,0.13102655,4405.5,4405.4,1.17312]
[1760014571607,0.3491,4406.3,4405.4,1.17312]
[1760014571608,0.3491,4406.7,4405.6,1.021]
[1760014571814,36.44555,4407.6,4405.5,0.1332]
[1760014571815,1.80601655,4407.5,4406.5,0.5796]
[1760014572013,2.59421655,4407.5,4407.4,0.7647]
[1760014572316,2.24511655,4407.5,4407.4,0.7647]
[1760014572704,2.24722918,4407.5,4407.4,0.76721288]
[1760014573014,2.59632918,4407.5,4407.4,0.76721288]
[1760014573205,2.72372918,4407.5,4407.4,0.00251288]
[1760014574113,0.91771263,4407.5,4407.4,0.00251288]
[1760014574321,0.79031263,4407.5,4407.4,0.54531288]
[1760014574818,0.79031263,4407.5,4407.4,0.76721288]
[1760014575715,0.00211263,4407.5,4407.4,0.76721288]
[1760014575915,0.21851263,4407.5,4407.4,0.76721288]
[1760014576415,0.00211263,4407.5,4407.4,0.76721288]
[1760014576816,0.21851263,4407.5,4407.4,0.76721288]
[1760014577017,0.00211263,4407.5,4407.4,0.76721288]
[1760014577819,0.00211263,4407.5,4407.4,5.76721288]
[1760014579719,0.022,4407.9,4407.8,1.1729]
[1760014579917,0.0067,4408.3,4407.8,4.3807]
[1760014580113,3.2078,4409.9,4409.8,0.4464]
[1760014580114,0.5655,4409.9,4409.8,0.4464]
[1760014580418,0.40799,4410.1,4410.0,0.5796]
[1760014580619,0.40799,4410.1,4410.0,0.8979]
[1760014580922,0.00201921,4410.1,4410.0,0.8979]
[1760014581609,0.3491,4410.0,4409.9,0.3183]
[1760014581811,0.2164,4410.0,4409.9,0.7647]
[1760014583018,0.00201921,4410.1,4409.9,0.7647]
[1760014583220,0.21841921,4410.1,4410.0,0.8979]
[1760014584219,0.00201921,4410.1,4410.0,0.8979]
[1760014586320,0.21841921,4410.1,4410.0,0.8979]
[1760014587720,0.79021921,4410.1,4410.0,0.8979]
[1760014588020,0.44111921,4410.1,4410.0,0.8979]
[1760014589217,0.78011921,4410.1,4410.0,0.7647]
[1760014589417,0.339,4409.8,4409.3,3.2078]
[1760014589619,0.8006,4409.4,4409.3,3.2078]
[1760014589812,0.229,4409.7,4409.3,3.9716]
[1760014589813,2.95185544,4409.7,4409.3,3.9716]
[1760014590016,2.98011606,4409.8,4409.7,0.72382]
[1760014590213,0.34101921,4410.1,4409.5,0.1312]
[1760014590214,0.00201921,4410.1,4410.0,0.98719]
[1760014590418,0.00201921,4410.1,4410.0,4.51079]
[1760014590920,0.00201921,4410.1,4410.0,0.895]
[1760014591222,0.46361921,4410.1,4410.0,0.895]
[1760014591420,0.80261921,4410.1,4410.0,0.895]
[1760014591921,3.70568838,4410.1,4410.0,0.5449]
[1760014592814,0.63752,4409.7,4409.6,0.448]
[1760014593020,0.86962,4409.7,4409.6,0.7638]
[1760014594327,1.20862,4409.7,4409.6,0.7638]
[1760014594529,0.8006,4409.7,4409.6,0.7638]
[1760014595022,0.8006,4409.1,4409.0,0.5449]
[1760014595227,0.2295,4409.1,4409.0,0.895]
[1760014595430,1.20863,4409.6,4409.5,0.5449]
[1760014595623,1.20863,4409.6,4409.5,0.895]
[1760014596126,1.20868,4409.1,4409.0,3.6558]
[1760014596322,1.20868,4409.1,4409.0,3.2078]
[1760014596522,4.17927941,4409.1,4409.0,3.2078]
[1760014597925,0.2295,4408.1,4408.0,0.1312]
[1760014598116,0.8006,4408.1,4408.0,0.7638]
[1760014598322,0.4616,4408.1,4407.9,3.2078]
[1760014598522,0.8006,4408.0,4407.9,4.16089]
[1760014598723,0.8006,4408.0,4407.9,3.7527]
[1760014599023,3.81559837,4408.0,4407.9,3.2078]
[1760014599226,1.47360345,4408.0,4407.9,3.2078]
[1760014599524,4.36140182,4408.0,4407.9,3.2078]
[1760014599730,0.4616,4407.5,4407.4,3.97411288]
[1760014601128,0.8006,4407.5,4407.4,3.21031288]
[1760014601325,0.928,4407.5,4407.4,3.21031288]
[1760014601518,0.4616,4407.5,4407.4,3.97411288]
[1760014602426,0.2295,4407.5,4407.4,3.97411288]
[1760014603522,1.0296,4407.9,4407.8,0.9531]
[1760014603722,1.23751406,4407.9,4407.8,1.172]
[1760014603922,1.57651406,4407.9,4407.8,0.7638]
[1760014604118,1.23751406,4407.9,4407.8,0.7638]
[1760014604523,0.339,4407.8,4407.5,0.40822]
[1760014604728,1.23751406,4407.9,4407.5,0.95312]
[1760014604729,0.8011,4407.6,4407.5,0.95312]
[1760014605629,0.8011,4407.6,4407.5,1.17362]
[1760014605829,0.8011,4407.6,4407.5,1.30272]
[1760014606030,0.4621,4407.6,4407.5,1.30272]
[1760014606418,0.4621,4407.6,4407.5,0.8945]
[1760014606928,0.8012,4407.6,4407.5,0.8945]
[1760014607329,0.4621,4407.6,4407.5,0.8945]
[1760014607529,3.36172469,4407.6,4407.5,0.7543]
[1760014608121,3.36172469,4407.6,4407.5,0.8834]
[1760014608326,0.2295,4407.6,4407.5,0.8834]
[1760014608527,0.4562,4407.9,4407.8,0.7543]
[1760014609530,1.0030828,4407.9,4407.8,0.7543]
[1760014609722,0.4562,4407.9,4407.8,1.1625]
[1760014610321,0.229,4407.9,4407.8,1.1625]
[1760014610930,0.4562,4407.9,4407.8,1.1625]
[1760014611534,1.43609,4407.9,4407.8,0.7543]
[1760014611833,1.43609,4407.9,4407.8,1.1625]
[1760014612035,1.0279,4407.9,4407.8,1.1625]
[1760014613329,0.6888,4407.9,4407.8,1.1625]
[1760014614336,0.4562,4407.9,4407.8,1.1625]
[1760014614526,0.229,4407.9,4407.8,1.1625]
[1760014614934,0.63719,4407.9,4407.8,1.1625]
[1760014615130,0.7989,4408.7,4408.6,0.2205]
[1760014615332,0.7989,4408.7,4408.6,0.7543]
[1760014615333,0.4598,4408.7,4408.6,0.7543]
[1760014615533,3.70430257,4408.7,4408.6,0.5338]
[1760014615728,3.70430257,4408.7,4408.6,0.94192]
[1760014615933,4.11242257,4408.7,4408.6,0.94192]
[1760014616135,4.11242257,4408.7,4408.6,0.5338]
[1760014616542,1.20702,4408.6,4408.5,3.2078]
[1760014616840,1.20708,4408.0,4407.9,3.2078]
[1760014617735,0.7989,4408.0,4407.9,4.14979]
[1760014618037,0.2272,4408.2,4408.1,1.16247]
[1760014618933,0.63536,4408.2,4408.1,1.16247]
[1760014620130,0.2272,4408.2,4408.1,1.16247]
[1760014620837,0.2272,4408.2,4408.0,0.1291]
[1760014620838,0.4437,4408.3,4408.2,1.18906]
[1760014621235,3.5264,4408.9,4408.2,1.18906]
[1760014621540,1.1548,4408.9,4408.8,0.5563]
[1760014621740,1.15482,4408.6,4408.5,3.8978]
[1760014622435,1.15482,4408.6,4408.5,4.1224]
[1760014623035,1.15482,4408.6,4408.5,3.4365]
[1760014623232,0.40815,4408.3,4408.2,0.3276]
[1760014623440,1.15485,4408.3,4408.2,0.3276]
[1760014624036,1.15485,4408.3,4408.2,0.96446]
[1760014624239,0.2147,4408.3,4408.2,1.18906]
[1760014624742,0.2147,4408.3,4408.0,0.1291]
[1760014624743,0.2147,4408.5,4408.4,0.86144]
[1760014625136,0.2147,4408.5,4408.4,1.18904]
[1760014625337,0.4281,4408.5,4408.4,1.18904]
[1760014625638,1.15483,4408.5,4408.4,0.7809]
[1760014626037,0.4281,4408.5,4408.4,0.7809]
[1760014626242,0.2147,4408.5,4408.4,4.39684]
[1760014627136,0.62283,4408.5,4408.4,3.9887]
[1760014627538,0.83623,4408.5,4408.4,3.9887]
[1760014627733,0.4281,4408.5,4408.4,4.39684]
[1760014629243,0.1814,4408.9,4408.8,1.18901]
[1760014629446,0.3961,4408.9,4408.8,0.7809]
[1760014629643,1.1548,4408.9,4408.8,0.7809]
[1760014630147,1.15483,4408.5,4408.4,3.7641]
[1760014630347,0.3186,4408.2,4408.1,0.73577]
[1760014630543,0.3186,4408.2,4408.1,0.96447]
[1760014630544,0.7467,4408.2,4408.1,0.96447]
[1760014630951,0.7467,4408.2,4408.1,1.18907]
[1760014631344,1.15486,4408.2,4408.1,1.18907]
[1760014631655,1.15486,4408.2,4408.1,0.5563]
[1760014631848,0.83628,4408.0,4407.9,4.17229]
[1760014632049,1.15488,4408.0,4407.9,4.17229]
[1760014632347,0.2147,4408.0,4407.9,4.39689]
[1760014632750,0.62288,4408.0,4407.9,4.39689]
[1760014633354,0.62288,4408.0,4407.9,3.9887]
[1760014633355,1.15488,4408.0,4407.9,3.9887]
[1760014633651,1.15488,4408.0,4407.4,3.21031288]
[1760014633652,0.40823,4407.5,4407.4,3.21031288]
[1760014633852,1.1029,4407.5,4407.4,0.00251288]
[1760014634048,4.0730955,4407.5,4407.4,0.00251288]
[1760014634553,4.0730955,4407.5,4407.4,0.55881288]
[1760014635655,4.0730955,4407.5,4407.4,0.00251288]
[1760014638252,9.0730955,4407.5,4407.4,0.00251288]
[1760014638555,9.61505963,4407.5,4407.4,0.00251288]
[1760014639258,9.0730955,4407.5,4407.4,0.00251288]
[1760014639756,9.61491515,4407.5,4407.4,0.00251288]
[1760014640160,0.7467,4406.3,4406.2,3.7641]
[1760014640352,0.9757,4406.3,4406.2,3.7641]
[1760014641049,0.97794223,4406.3,4406.2,3.76590753]
[1760014641854,0.97794223,4406.3,4406.2,3.99050753]
[1760014642049,0.65934223,4406.3,4406.2,3.99050753]
[1760014642451,0.97794223,4406.3,4406.2,3.99050753]
[1760014643254,0.23124223,4406.3,4406.2,3.99050753]
[1760014643757,0.00224223,4406.3,4406.2,8.99050753]
[1760014645449,0.00224223,4406.3,4406.2,9.39885753]
[1760014647846,0.229,4406.8,4406.7,0.4083]
[1760014648047,0.2147,4407.6,4407.5,1.32282]
[1760014648247,4.6243,4407.8,4407.7,0.5329]
[1760014648549,0.7793,4407.5,4407.4,0.94113]
[1760014648754,0.4455,4407.5,4407.4,1.16323]
[1760014648958,0.44839664,4407.5,4407.4,1.16323]
[1760014649758,1.18754,4407.4,4407.3,0.40824]
[1760014649954,1.18754,4407.4,4407.2,3.2078]
[1760014650258,1.18754,4407.4,4407.3,0.62014]
[1760014650452,0.7793,4407.4,4407.3,0.94114]
[1760014650657,0.4455,4407.4,4407.3,1.16324]
[1760014652168,0.7793,4407.4,4407.3,1.16324]
[1760014653862,0.2202,4407.4,4407.3,1.16324]
[1760014656159,0.4455,4407.4,4407.3,1.16324]
[1760014656457,0.7793,4407.4,4407.3,1.16324]
[1760014657958,1.18754,4407.4,4407.3,0.40824]
[1760014659565,1.18754,4407.3,4407.2,3.2078]
[1760014659860,4.09561384,4407.3,4407.2,3.2078]
[1760014661161,4.32461384,4407.3,4407.2,3.2078]
[1760014661757,4.32461384,4407.3,4407.2,3.4197]
[1760014661758,3.91637384,4407.3,4407.2,3.4197]
[1760014662060,0.6745,4407.3,4407.2,3.9628]
[1760014662262,0.4492,4407.3,4407.2,3.9628]
[1760014663158,0.18439664,4407.5,4407.4,0.755]
[1760014663564,0.4492,4408.0,4407.9,0.434]
[1760014663758,0.4492,4408.0,4407.9,4.37099]
[1760014664665,0.45081657,4408.0,4407.9,4.37099]
[1760014664962,0.99571657,4408.0,4407.9,3.82789]
[1760014665364,0.99571657,4408.0,4407.9,4.14869]
[1760014665566,0.67661657,4408.0,4407.9,4.36999]
[1760014665863,0.45081657,4408.0,4407.9,4.36999]
[1760014667067,0.00161657,4408.0,4407.9,4.36999]
[1760014668768,0.00161657,4408.0,4407.9,9.36999]
[1760014668964,3.2078,4409.9,4408.2,1.0204]
[1760014669174,1.21764712,4410.9,4410.7,0.4505]
[1760014669369,1.21764712,4410.9,4410.8,3.437]
[1760014669370,0.4505,4410.9,4410.8,3.437]
[1760014669669,0.4505,4410.9,4410.8,3.9791]
[1760014670064,0.4521718,4410.9,4410.8,3.98080643]
[1760014670469,0.0016718,4410.9,4410.8,3.98080643]
[1760014672167,0.2263718,4410.9,4410.8,3.98080643]
[1760014672664,0.0016718,4410.9,4410.8,3.98080643]
[1760014672872,0.2263718,4410.9,4410.8,3.98080643]
[1760014673466,0.0016718,4410.9,4410.8,3.98080643]
[1760014675669,0.0942,4411.7,4410.8,3.98080643]
[1760014675873,0.0942,4411.7,4411.6,0.7713]
[1760014675874,0.3189,4411.7,4411.6,0.7713]
[1760014676270,0.8638,4411.7,4411.6,1.17915]
[1760014676476,0.7696,4411.7,4411.6,1.17915]
[1760014676670,0.4505,4411.7,4411.6,1.17915]
[1760014676870,0.45300066,4411.7,4411.6,1.17915]
[1760014677273,0.77210066,4411.7,4411.6,1.17915]
[1760014678378,0.77210066,4411.7,4411.6,0.95785]
[1760014679673,0.77210066,4411.7,4411.6,0.55]
[1760014680068,0.22930066,4411.7,4411.6,0.7831]
[1760014680270,0.79000066,4411.7,4411.6,0.7831]
[1760014680672,0.00250066,4411.7,4411.6,0.7831]
[1760014681077,0.22930066,4411.7,4411.6,0.7831]
[1760014683377,0.3489,4411.6,4411.3,3.2078]
[1760014683674,0.7875,4411.4,4411.3,3.2078]
[1760014683871,0.7875,4411.4,4411.3,3.7822]
[1760014684076,0.4386,4411.4,4411.3,4.0153]
[1760014684276,0.7875,4411.4,4411.3,4.0153]
[1760014684770,0.4386,4411.4,4411.3,4.0153]
[1760014685178,0.7875,4411.4,4411.3,4.0153]
[1760014685680,4.02860823,4411.4,4410.8,0.75702643]
[1760014685879,0.7875,4410.9,4410.8,3.78390643]
[1760014686180,3.24110823,4411.4,4411.2,0.8075]
[1760014686181,0.229,4411.4,4411.2,0.8075]
[1760014686375,0.84647,4411.3,4411.2,0.4601]
[1760014686577,3.20784267,4411.3,4411.2,0.86798]
[1760014686773,0.7875,4411.3,4411.2,0.5744]
[1760014686974,0.2268,4410.9,4410.8,3.84442643]
[1760014687179,0.2268,4410.9,4410.8,4.42492643]
[1760014688277,0.2268,4411.2,4411.1,0.86799]
[1760014688483,0.2268,4411.2,4411.1,1.21539]
[1760014689478,0.63468,4411.2,4411.1,1.21539]
[1760014689681,0.7875,4411.2,4411.1,0.8075]
[1760014689882,0.4386,4411.2,4411.1,0.8075]
[1760014690084,0.4386,4411.2,4411.1,1.21539]
[1760014691583,1.19538,4411.2,4411.1,1.21539]
[1760014691889,1.19538,4411.2,4411.1,0.5744]
[1760014692785,0.7875,4411.2,4411.1,0.98229]
[1760014692984,0.7875,4411.2,4411.1,1.21539]
[1760014693582,1.19538,4411.2,4411.1,1.21539]
[1760014693784,1.19538,4411.2,4411.1,0.5744]
[1760014694185,1.19538,4411.2,4411.1,0.98229]
[1760014694487,1.19538,4411.2,4411.1,0.5744]
[1760014694686,0.4386,4411.0,4410.8,0.00170643]
[1760014694886,0.3489,4410.1,4409.8,3.2078]
[1760014695088,0.40801,4409.8,4409.5,0.4845]
[1760014695388,0.229,4410.2,4409.5,0.4845]
[1760014695389,0.7875,4409.6,4409.5,0.8075]
[1760014695588,0.40804,4409.5,4409.3,3.2078]
[1760014695785,0.7875,4409.4,4409.3,3.78468593]
[1760014696392,0.7875,4409.4,4409.3,3.43728593]
[1760014696684,1.0165,4409.6,4409.5,0.227]
[1760014696990,1.0165,4409.6,4409.3,3.43728593]
[1760014696991,0.7875,4409.4,4409.3,3.43728593]
[1760014697386,0.7875,4409.4,4409.3,3.78468593]
[1760014698296,0.7875,4409.4,4409.3,3.21028593]
[1760014699291,1.32579688,4409.4,4409.3,3.21028593]
[1760014699496,0.7875,4409.4,4409.3,3.55768593]
[1760014700090,0.229,4409.6,4409.5,0.1371]
[1760014700302,1.34404712,4410.5,4409.7,0.5805]
[1760014700303,0.4386,4409.8,4409.7,0.5805]
[1760014700486,1.38438498,4409.8,4409.5,0.4845]
[1760014700688,0.7875,4409.6,4409.5,0.3474]
[1760014700989,0.7875,4409.6,4409.5,0.5744]
[1760014701186,0.7875,4409.6,4409.5,0.8075]
[1760014701386,0.2268,4409.6,4409.5,0.9446]
[1760014701587,0.2268,4409.9,4409.8,0.4601]
[1760014701792,1.0165,4409.9,4409.8,0.8075]
[1760014701991,3.92655998,4409.9,4409.8,0.8075]
[1760014702287,3.92655998,4409.9,4409.3,3.78468593]
[1760014702288,0.7875,4409.4,4409.3,3.78468593]
[1760014703091,3.6788447,4409.4,4409.3,0.00248593]
[1760014703595,3.9078447,4409.4,4409.3,0.00248593]
[1760014704187,0.2268,4408.4,4408.2,3.5552]
[1760014704404,0.7875,4408.3,4408.2,0.5744]
[1760014704695,1.0165,4408.6,4408.5,0.9446]
[1760014704893,0.6676,4408.6,4408.5,0.9446]
[1760014705298,1.01875495,4408.6,4408.5,0.94724954]
[1760014705699,1.07797495,4408.6,4408.5,0.94724954]
[1760014706097,0.66985495,4408.6,4408.5,0.94724954]
[1760014706301,0.00225495,4408.6,4408.5,0.94724954]
[1760014711704,0.22255495,4408.6,4408.5,0.94724954]
[1760014711899,0.22255495,4408.6,4408.5,1.35537954]
[1760014712100,0.63067495,4408.6,4408.5,1.35537954]
[1760014712401,0.63067495,4408.6,4408.5,0.94724954]
[1760014712901,1.19317495,4408.6,4408.5,0.94724954]
[1760014713403,1.19317495,4408.6,4408.5,1.35537954]
[1760014713602,1.19317495,4408.6,4408.5,0.00264954]
[1760014713801,4.66186866,4408.6,4408.5,0.00264954]
[1760014714002,4.12418323,4408.6,4408.5,0.00264954]
[1760014714601,4.66184106,4408.6,4408.5,0.00264954]
[1760014715109,4.12418323,4408.6,4408.5,0.00264954]
[1760014715301,4.66184106,4408.6,4408.5,0.00264954]
[1760014716403,3.36646323,4408.6,4408.5,0.89674954]
[1760014716705,0.00225495,4408.6,4408.5,0.89674954]
[1760014716902,0.00225495,4408.6,4408.5,1.30487954]
[1760014717500,0.22255495,4408.6,4408.5,1.30487954]
[1760014717908,0.63067495,4408.6,4408.5,1.30487954]
[1760014718405,0.63067495,4408.6,4408.5,0.89674954]
[1760014718903,0.22255495,4408.6,4408.5,1.30487954]
[1760014719610,0.63067495,4408.6,4408.5,1.30487954]
[1760014719803,0.63067495,4408.6,4408.5,0.89674954]
[1760014720211,1.19317495,4408.6,4408.5,0.89674954]
[1760014720510,0.63067495,4408.6,4408.5,0.89674954]
[1760014721012,0.84357495,4408.6,4408.5,0.89674954]
[1760014721210,1.19317495,4408.6,4408.5,0.54024954]
[1760014722008,1.19317495,4408.6,4408.5,0.89674954]
[1760014722408,1.19317495,4408.6,4408.5,0.76254954]
[1760014722708,1.19317495,4408.6,4408.5,0.00264954]
[1760014723514,4.74532268,4408.6,4408.5,0.00264954]
[1760014724115,4.20576185,4408.6,4408.5,0.00264954]
[1760014724410,4.74598729,4408.6,4408.5,0.89674954]
[1760014724712,4.74598729,4408.6,4408.5,0.54024954]
[1760014724909,4.74598729,4408.6,4408.5,0.00264954]
[1760014729318,4.97498729,4408.6,4408.5,0.00264954]
[1760014730222,4.97498729,4408.6,4408.5,0.54464954]
[1760014730817,4.97539618,4408.6,4408.5,0.54464954]
[1760014731820,4.97539618,4408.6,4408.5,0.00264954]
[1760014733826,4.97539618,4408.6,4408.5,0.32584954]
[1760014735322,4.97539618,4408.6,4408.5,0.00264954]
[1760014735718,1.02054,4407.7,4407.3,3.531]
[1760014735931,1.17584,4407.4,4407.3,3.7498]
[1760014736224,1.94547433,4407.4,4407.3,3.9752]
[1760014736430,1.40484,4407.4,4407.3,3.9752]
[1760014736728,1.40484,4407.4,4407.3,3.97784644]
[1760014737222,0.229,4407.4,4407.3,4.38608644]
[1760014737424,0.63724,4407.4,4407.3,3.97784644]
[1760014738227,0.40823,4407.5,4407.4,0.84354]
[1760014738524,0.63723,4407.5,4407.4,0.7585]
[1760014739029,0.63723,4407.5,4407.4,1.16674]
[1760014739222,0.86213,4407.5,4407.4,0.7585]
[1760014739422,1.18984,4407.4,4407.3,0.00264644]
[1760014739622,1.73056669,4407.4,4407.3,0.00264644]
[1760014739929,4.70854219,4407.4,4407.3,0.00264644]
[1760014740323,4.70854219,4407.4,4407.3,0.54184644]
[1760014740823,4.30030219,4407.4,4407.3,0.54184644]
[1760014741022,4.30030219,4407.4,4407.3,3.74964644]
[1760014741518,4.30030219,4407.4,4407.3,0.54184644]
[1760014742629,0.99682669,4407.4,4407.3,0.76114644]
[1760014742920,0.54072669,4407.4,4407.3,3.96894644]
[1760014743121,0.5504,4408.1,4408.0,0.4353]
[1760014743329,1.55424532,4408.1,4408.0,0.5392]
[1760014743523,4.49206124,4408.1,4408.0,0.5392]
[1760014744032,0.7816,4408.1,4408.0,0.7585]
[1760014744329,0.7816,4408.0,4407.9,0.216]
[1760014744527,0.7816,4408.0,4407.9,0.5392]
[1760014744727,0.7816,4408.0,4407.9,0.7585]
[1760014744923,0.5567,4408.0,4407.9,0.7585]
[1760014745123,1.19197495,4408.6,4408.5,0.216]
[1760014745318,0.86424,4408.4,4408.3,0.5392]
[1760014745516,4.21644375,4408.4,4408.3,0.5392]
[1760014746827,0.4561,4408.1,4408.0,0.895]
[1760014747033,0.7816,4407.5,4407.4,0.5392]
[1760014747331,0.7816,4407.5,4407.4,0.7585]
[1760014747633,0.4561,4407.5,4407.4,41.5585]
[1760014748028,0.229,4407.6,4407.5,0.895]
[1760014748429,0.4539,4407.6,4407.5,0.895]
[1760014749032,0.6851,4407.6,4407.5,0.895]
[1760014750335,1.0106,4407.6,4407.5,0.7585]
[1760014750926,1.41882,4407.6,4407.3,3.21044644]
[1760014751134,0.7816,4407.4,4407.3,3.53364644]
[1760014751531,0.7816,4407.4,4407.3,4.15788644]
[1760014752130,0.7816,4407.4,4407.3,3.74964644]
[1760014752934,1.18984,4407.4,4407.3,3.21044644]
[1760014753242,4.19073205,4407.4,4407.3,3.21044644]
[1760014753434,3.78249205,4407.4,4407.3,3.21044644]
[1760014753637,4.19073205,4407.4,4407.3,0.54184644]
[1760014754640,3.78249205,4407.4,4407.3,0.54184644]
[1760014755543,3.78249205,4407.4,4407.3,0.76114644]
[1760014756444,3.78249205,4407.4,4407.3,1.16938644]
[1760014756745,3.78249205,4407.4,4407.3,0.76114644]
[1760014759348,3.78249205,4407.4,4407.3,1.16938644]
[1760014760540,3.22579205,4407.4,4407.3,1.16938644]
[1760014761144,0.2249,4407.4,4407.3,1.16938644]
[1760014761344,0.229,4407.4,4407.3,1.16938644]
[1760014762949,0.1815,4407.6,4407.5,0.40823]
[1760014763152,1.17920036,4407.6,4407.5,1.30323]
[1760014763450,0.99770036,4407.6,4407.5,1.30323]
[1760014763648,0.99770036,4407.6,4407.5,0.895]
[1760014763849,1.22890036,4407.6,4407.5,0.895]
[1760014764052,1.55440036,4407.6,4407.5,0.895]
[1760014764743,0.4561,4407.4,4407.3,0.00264644]
[1760014765043,4.28297388,4407.4,4407.3,0.00264644]
[1760014765749,4.28297388,4407.4,4407.3,0.32584644]
[1760014766548,4.28297388,4407.4,4407.3,0.54184644]
[1760014768748,4.51197388,4407.4,4407.3,0.54184644]
[1760014770251,4.51197388,4407.4,4407.3,0.00264644]
[1760014771650,4.92021388,4407.4,4407.3,0.00264644]
[1760014771854,8.12801388,4407.4,4407.3,0.00264644]
[1760014772054,7.71977388,4407.4,4407.3,0.00264644]
[1760014772253,7.71977388,4407.4,4407.3,0.32514644]
[1760014772658,7.71977388,4407.4,4407.3,0.00264644]
[1760014776246,7.49077388,4407.4,4407.3,0.00264644]
[1760014776449,7.71977388,4407.4,4407.3,0.54574644]
[1760014777345,7.71977388,4407.4,4407.3,0.77714644]
[1760014777756,7.71977388,4407.4,4407.3,0.00264644]
[1760014782957,8.12801388,4407.4,4407.3,0.00264644]
[1760014784367,7.71977388,4407.4,4407.3,0.00264644]
[1760014784662,8.12801388,4407.4,4407.3,0.00264644]
[1760014788254,7.71977388,4407.4,4407.3,0.00264644]
[1760014788653,8.12801388,4407.4,4407.3,0.00264644]
[1760014790467,7.58421352,4407.4,4407.3,0.00264644]
[1760014790669,8.13242447,4407.4,4407.3,0.00264644]
[1760014791470,0.7597,4406.5,4406.4,0.97283]
[1760014791667,0.9887,4406.5,4406.4,0.97283]
[1760014792565,0.9887,4406.5,4406.4,0.9749946]
[1760014792766,0.9887,4406.5,4406.4,1.1947946]
[1760014795466,1.94540611,4406.5,4406.4,0.0021646]
[1760014795671,1.94540611,4406.5,4406.4,0.3506646]
[1760014796973,1.53708611,4406.5,4406.4,0.9749946]
[1760014797371,1.53708611,4406.5,4406.4,0.5666646]
[1760014798573,1.94540611,4406.5,4406.4,0.5666646]
[1760014799370,2.07210611,4406.5,4406.4,0.0021646]
[1760014800370,5.03714533,4406.5,4406.4,0.0021646]
[1760014801178,4.62882533,4406.5,4406.4,0.0021646]
[1760014801479,5.03714533,4406.5,4406.4,0.0021646]
[1760014802072,4.62882533,4406.5,4406.4,0.7552946]
[1760014802266,0.54838611,4406.5,4406.4,1.1913946]
[1760014802474,0.99788611,4406.5,4406.4,1.1913946]
[1760014803179,0.77738611,4406.5,4406.4,1.1913946]
[1760014803375,0.54838611,4406.5,4406.4,6.1913946]
[1760014803680,0.1815,4406.7,4406.6,1.18921]
[1760014803977,0.229,4406.9,4406.8,0.40829]
[1760014804172,0.2205,4407.6,4407.5,1.31553]
[1760014804368,0.4495,4407.6,4407.5,0.9073]
[1760014804580,1.22061559,4407.6,4407.5,0.9073]
[1760014804980,0.99911559,4407.6,4407.5,0.9073]
[1760014805180,0.229,4407.6,4407.5,0.9073]
[1760014805480,0.7688,4408.2,4408.1,0.5628]
[1760014805776,0.54943542,4408.2,4408.1,0.7809]
[1760014806082,0.7688,4407.6,4407.5,0.5628]
[1760014806286,0.442,4407.6,4407.5,0.9073]
[1760014806474,1.31813229,4407.6,4407.5,0.5628]
[1760014806676,1.31813229,4407.6,4407.3,3.7706]
[1760014806677,0.442,4407.4,4407.3,3.7706]
[1760014806978,0.9978,4407.4,4407.3,3.9887]
[1760014807479,0.9978,4407.4,4407.3,3.7706]
[1760014807683,0.671,4407.4,4407.3,3.9887]
[1760014808378,0.9978,4407.4,4407.3,3.9887]
[1760014809680,0.671,4407.4,4407.3,3.9887]
[1760014809874,0.9978,4407.4,4407.3,3.9887]
[1760014810074,0.9978,4407.4,4407.3,3.7706]
[1760014810275,0.73504,4407.3,4407.1,40.8]
[1760014810581,0.3268,4407.1,4407.0,0.3448]
[1760014810879,0.7688,4407.1,4407.0,0.5628]
[1760014811381,0.442,4407.1,4407.0,0.9073]
[1760014811576,0.2205,4407.1,4407.0,0.9073]
[1760014811776,0.2205,4407.4,4407.3,1.18914]
[1760014811971,0.2205,4407.7,4407.6,1.18912]
[1760014812180,0.1814,4407.8,4407.7,0.7809]
[1760014812380,0.1814,4407.8,4407.7,8.9887]
[1760014812679,0.229,4408.1,4408.0,1.31548]
[1760014813081,0.00225495,4408.6,4408.5,0.1264]
[1760014813282,0.00225495,4408.6,4408.5,0.9073]
[1760014813283,0.22275495,4408.6,4408.5,0.9073]
[1760014813480,1.00050885,4408.6,4408.5,0.9073]
[1760014813783,1.54880885,4408.6,4408.5,0.5628]
[1760014814178,0.67325495,4408.6,4408.5,0.9073]
[1760014815181,0.44425495,4408.6,4408.5,0.9073]
[1760014815377,0.67025495,4408.6,4408.5,0.9073]
[1760014815785,0.00225495,4408.6,4408.5,0.9073]
[1760014817182,0.7688,4409.8,4409.7,0.62602]
[1760014817488,3.88307445,4409.8,4409.7,1.18892]
[1760014817686,4.43887445,4409.8,4409.7,0.5628]
[1760014817985,4.43887445,4409.8,4409.5,0.75284]
[1760014818181,0.442,4409.6,4409.5,0.75558822]
[1760014818386,0.7688,4409.6,4409.5,0.75558822]
[1760014818582,0.7688,4409.6,4409.5,0.97358822]